bitfinex/quotes_SOLUSD_20251128
["timestamp","ask_amount","ask_price","bid_price","bid_amount"]
[1764361357395,3.83930056,137.76,137.74,64.6]
[1764361357590,3.83930056,137.76,137.75,0.69]
[1764361358407,3.83930056,137.76,137.74,65.29]
[1764361358918,3.83930056,137.76,137.74,3.89]
[1764361360418,3.83930056,137.76,137.75,0.69]
[1764361360715,3.83930056,137.76,137.74,3.2]
[1764361360917,3.83930056,137.75,137.74,3.2]
[1764361361105,4.50930056,137.75,137.73,7.26050823]
[1764361361520,3.83930056,137.75,137.73,7.26050823]
[1764361361722,3.83930056,137.75,137.73,7.95050823]
[1764361362923,11.76855064,137.76,137.73,7.95050823]
[1764361370118,11.09855064,137.76,137.72,26.76976339]
[1764361370323,4.50930056,137.75,137.72,20.198864]
[1764361371225,4.50930056,137.75,137.72,19.508864]
[1764361371425,3.83930056,137.75,137.73,0.69]
[1764361371609,27.63008286,137.74,137.7,21.34554919]
[1764361371803,3.83930056,137.74,137.71,0.69]
[1764361371998,7.25957178,137.75,137.71,0.69]
[1764361372621,11.09887234,137.75,137.71,0.69]
[1764361373731,7.25957178,137.75,137.71,11.79093396]
[1764361373927,7.25957178,137.75,137.71,7.9516334]
[1764361374108,7.25957178,137.75,137.72,0.69]
[1764361375212,11.09887234,137.75,137.72,0.69]
[1764361379042,11.09887234,137.75,137.72,7.95110525]
[1764361379335,3.83930056,137.75,137.72,7.95110525]
[1764361379513,11.0984569,137.76,137.73,3.89]
[1764361380015,11.0984569,137.76,137.74,0.69]
[1764361380634,3.83930056,137.76,137.73,3.2]
[1764361380833,11.09797222,137.77,137.73,3.2]
[1764361381234,11.09726906,137.78,137.73,3.2]
[1764361381438,0.2,137.81,137.73,7.03930056]
[1764361381639,0.2,137.81,137.76,20.14816456]
[1764361381944,0.2,137.81,137.77,7.03930056]
[1764361382235,0.2,137.81,137.77,25.01104365]
[1764361382612,0.2,137.81,137.78,7.25794745]
[1764361382818,0.2,137.81,137.78,7.94794745]
[1764361383041,0.2,137.81,137.79,0.69]
[1764361384641,0.2,137.81,137.8,3.2]
[1764361386319,0.2,137.81,137.8,11.16689404]
[1764361389531,0.2,137.81,137.8,10.45689404]
[1764361391634,0.2,137.81,137.8,11.16689404]
[1764361393746,0.2,137.81,137.8,3.2]
[1764361394760,0.2,137.81,137.8,10.45689404]
[1764361395130,0.2,137.81,137.8,3.2]
[1764361396125,0.2,137.81,137.8,10.45689404]
[1764361397260,10.5719298,137.81,137.79,60.14459202]
[1764361397460,3.31540641,137.81,137.78,10.45788343]
[1764361397832,3.31540641,137.81,137.78,11.16788343]
[1764361398443,3.31540641,137.81,137.78,10.45788343]
[1764361399046,0.2,137.81,137.78,10.45788343]
[1764361399256,0.2,137.81,137.79,7.96739482]
[1764361399460,0.2,137.81,137.79,7.25739482]
[1764361400960,0.2,137.81,137.8,0.68]
[1764361401136,0.2,137.81,137.8,11.13689404]
[1764361401845,0.2,137.81,137.8,10.45689404]
[1764361402655,0.2,137.81,137.8,90.04575647]
[1764361403177,0.2,137.81,137.8,92.95326146]
[1764361406561,0.2,137.81,137.8,86.46435492]
[1764361407151,1e-08,137.81,137.8,86.46435492]
[1764361407562,0.2,137.82,137.8,86.46435492]
[1764361407563,1e-08,137.82,137.81,9.48994492]
[1764361407751,1e-08,137.82,137.81,11.94535133]
[1764361408064,1e-08,137.82,137.81,12.22967447]
[1764361408543,1e-08,137.82,137.81,19.48604193]
[1764361408739,1e-08,137.82,137.81,10.39177387]
[1764361409063,1e-08,137.82,137.81,24.24523146]
[1764361409951,1e-08,137.82,137.81,26.70063787]
[1764361416866,0.68000001,137.82,137.81,76.45345602]
[1764361417047,0.68000001,137.82,137.81,83.70982348]
[1764361419263,1e-08,137.82,137.81,83.70982348]
[1764361419651,1e-08,137.82,137.81,86.84522989]
[1764361420556,1e-08,137.82,137.81,84.38982348]
[1764361420757,1e-08,137.82,137.81,83.70982348]
[1764361424175,0.68000001,137.82,137.81,83.70982348]
[1764361424882,3.13540642,137.82,137.8,10.45671954]
[1764361425091,2.45540641,137.81,137.8,10.45671954]
[1764361425385,3.13540641,137.81,137.8,19.508864]
[1764361426155,0.68,137.81,137.8,19.508864]
[1764361428862,0.68,137.81,137.8,26.76575804]
[1764361429365,0.68000001,137.82,137.8,26.76575804]
[1764361430064,0.68000001,137.82,137.8,86.91035006]
[1764361432484,3.13540642,137.82,137.8,79.65345602]
[1764361432965,0.68,137.81,137.8,79.65345602]
[1764361436191,0.68,137.81,137.8,19.508864]
[1764361436891,0.68000001,137.82,137.8,19.508864]
[1764361437392,0.68000001,137.82,137.8,26.7653716]
[1764361439574,1e-08,137.82,137.81,0.68]
[1764361439774,1e-08,137.82,137.81,63.27999843]
[1764361439970,1e-08,137.82,137.81,72.23210492]
[1764361441074,1e-08,137.82,137.81,79.48847238]
[1764361441273,1e-08,137.82,137.81,82.25297069]
[1764361441587,0.68,137.89,137.84,16.308864]
[1764361441780,0.68,137.89,137.86,2.45540641]
[1764361442101,0.68,137.89,137.87,3.2]
[1764361443282,0.68,137.89,137.88,7.25268349]
[1764361443894,0.68,137.89,137.87,3.2]
[1764361447094,0.2,137.91,137.88,3.12540641]
[1764361447294,0.2,137.91,137.89,3.2]
[1764361447472,0.86,137.91,137.89,3.2]
[1764361449001,0.86,137.91,137.89,10.4517554]
[1764361450497,0.86,137.91,137.89,3.2]
[1764361451313,0.66,137.9,137.89,3.2]
[1764361451799,2.65540641,137.91,137.89,3.2]
[1764361452000,3.31540641,137.91,137.89,3.2]
[1764361452809,4.69259173,137.91,137.89,3.2]
[1764361453603,0.66,137.9,137.89,3.2]
[1764361453802,4.49259173,137.9,137.87,60.14459202]
[1764361454006,3.83259173,137.89,137.87,63.34459202]
[1764361454202,0.66,137.89,137.87,63.34459202]
[1764361455077,11.28385493,137.91,137.87,70.59772315]
[1764361455284,0.66,137.9,137.87,70.59772315]
[1764361455783,0.66,137.9,137.87,71.26772315]
[1764361456485,0.86,137.91,137.88,0.67]
[1764361456680,0.86,137.91,137.88,7.92229158]
[1764361456899,0.86,137.91,137.88,68.0668836]
[1764361457103,0.66,137.9,137.88,68.0668836]
[1764361459983,0.66,137.9,137.88,60.14459202]
[1764361461302,11.74422345,137.9,137.87,10.4527082]
[1764361461499,3.83259173,137.89,137.87,10.4527082]
[1764361461696,4.52259173,137.89,137.87,10.4527082]
[1764361461896,0.69,137.89,137.87,10.4527082]
[1764361471093,0.69,137.89,137.87,17.90406937]
[1764361471715,0.69,137.89,137.87,78.04866139]
[1764361472315,0.69,137.89,137.87,77.84866139]
[1764361472718,0.465184,137.89,137.87,70.39730022]
[1764361473015,0.465184,137.89,137.87,70.19730022]
[1764361473313,0.293816,137.89,137.87,70.65730022]
[1764361473615,0.069016,137.89,137.87,70.65730022]
[1764361473810,3.83259173,137.9,137.87,70.65730022]
[1764361474010,3.83259173,137.9,137.87,70.45730022]
[1764361474415,3.60777573,137.9,137.87,70.45730022]
[1764361474617,3.60777573,137.9,137.87,77.70866139]
[1764361474797,3.56815773,137.9,137.87,77.50866139]
[1764361474994,3.56815773,137.9,137.87,94.98168525]
[1764361475203,4.03259173,137.91,137.88,0.46]
[1764361475396,0.68,137.9,137.88,0.46]
[1764361475597,0.4552,137.9,137.88,0.46]
[1764361475815,0.4552,137.9,137.88,0.26]
[1764361476197,0.2304,137.9,137.88,0.26]
[1764361476397,0.2304,137.9,137.88,0.06]
[1764361476604,0.005633,137.9,137.88,0.06]
[1764361476810,0.005633,137.9,137.87,94.84168525]
[1764361477124,0.005633,137.9,137.87,94.64168525]
[1764361477620,3.81345773,137.91,137.88,0.66]
[1764361478505,4.49345773,137.91,137.88,0.46]
[1764361478822,0.68,137.9,137.87,94.64168525]
[1764361478998,0.460286,137.9,137.87,95.30168525]
[1764361479199,0.460286,137.9,137.87,94.44168525]
[1764361479524,0.235502,137.9,137.88,0.66]
[1764361479708,0.235502,137.9,137.88,0.46]
[1764361479908,0.010702,137.9,137.88,0.46]
[1764361480108,0.68,137.9,137.88,0.26]
[1764361480498,0.644659,137.9,137.88,7.51232173]
[1764361481314,0.644659,137.9,137.88,7.31232173]
[1764361481519,0.644659,137.9,137.88,7.11232173]
[1764361481720,0.230402,137.9,137.88,7.77232173]
[1764361481897,0.230402,137.9,137.88,7.57232173]
[1764361482100,3.83259173,137.91,137.88,7.37232173]
[1764361482301,3.83259173,137.91,137.88,7.17232173]
[1764361482514,3.77019573,137.91,137.88,7.17232173]
[1764361482709,3.83259173,137.91,137.88,7.17232173]
[1764361482917,3.83259173,137.91,137.88,6.97232173]
[1764361483101,3.60779173,137.91,137.88,6.97232173]
[1764361483313,3.60779173,137.91,137.88,6.77232173]
[1764361483627,3.60779173,137.91,137.88,66.71691375]
[1764361483829,3.38300773,137.91,137.88,66.71691375]
[1764361484125,4.06300773,137.91,137.88,66.51691375]
[1764361484329,3.83824073,137.91,137.88,66.51691375]
[1764361484520,3.83824073,137.91,137.88,66.31691375]
[1764361484819,3.61347373,137.91,137.88,66.31691375]
[1764361485026,3.61347373,137.91,137.88,60.80459202]
[1764361485226,3.38870673,137.91,137.88,60.80459202]
[1764361485532,0.455233,137.9,137.88,60.14459202]
[1764361485827,2.70870673,137.91,137.88,60.60459202]
[1764361486520,7.45058799,137.92,137.88,60.60459202]
[1764361486713,3.83259173,137.91,137.88,60.40459202]
[1764361486907,3.83259173,137.91,137.88,67.25691375]
[1764361487108,3.38305773,137.91,137.88,67.25691375]
[1764361487509,0.68,137.9,137.87,8.91136117]
[1764361487705,3.83259173,137.88,137.87,7.25136117]
[1764361488136,4.28780773,137.88,137.83,7.71509573]
[1764361488323,3.60780773,137.85,137.82,3.2]
[1764361488522,3.60780773,137.85,137.82,3.0]
[1764361488715,3.60780773,137.85,137.82,19.968864]
[1764361488716,4.06297473,137.85,137.82,19.968864]
[1764361488921,4.06297473,137.85,137.82,3.46]
[1764361489235,11.76687409,137.85,137.82,3.46]
[1764361489428,11.76687409,137.85,137.82,3.26]
[1764361489805,11.54204109,137.85,137.82,3.06]
[1764361490011,11.08687409,137.85,137.82,3.06]
[1764361490328,11.08687409,137.85,137.82,2.86]
[1764361490728,10.86199209,137.85,137.82,2.86]
[1764361490932,3.83259173,137.84,137.82,2.66]
[1764361491234,3.60770973,137.84,137.82,2.66]
[1764361491432,3.60770973,137.84,137.82,2.46]
[1764361491621,3.38282773,137.84,137.82,2.46]
[1764361491821,3.83259173,137.83,137.78,66.40248398]
[1764361492031,3.60770973,137.81,137.8,16.308864]
[1764361492230,3.60770973,137.81,137.8,16.108864]
[1764361492432,3.60769373,137.82,137.8,16.108864]
[1764361492612,3.60769373,137.82,137.81,0.46]
[1764361492937,7.25572891,137.83,137.81,0.46]
[1764361493138,3.83259173,137.82,137.81,0.26]
[1764361493642,3.60766073,137.82,137.81,0.06]
[1764361493820,3.38272973,137.82,137.8,15.968864]
[1764361494020,11.08832064,137.83,137.8,15.968864]
[1764361494231,11.54338964,137.83,137.8,15.968864]
[1764361494412,3.83259173,137.82,137.8,15.768864]
[1764361494616,4.51259173,137.82,137.8,15.768864]
[1764361495325,3.83259173,137.82,137.8,15.768864]
[1764361495915,3.83259173,137.82,137.8,16.428864]
[1764361497042,11.54338964,137.83,137.8,16.428864]
[1764361498452,4.51259173,137.82,137.79,62.34459202]
[1764361498626,4.51259173,137.82,137.79,63.00459202]
[1764361498826,4.51259173,137.82,137.79,62.34459202]
[1764361498827,0.68,137.82,137.79,62.34459202]
[1764361499131,29.68167593,137.83,137.8,0.66]
[1764361500447,11.7687146,137.82,137.79,62.34459202]
[1764361500742,3.83259173,137.81,137.79,0.66]
[1764361500949,11.0887146,137.82,137.79,0.427763]
[1764361501156,0.68,137.81,137.78,75.45345602]
[1764361501447,11.5687146,137.82,137.78,75.45345602]
[1764361501635,0.68,137.81,137.78,75.22121902]
[1764361501943,0.48,137.81,137.78,75.64898202]
[1764361502147,10.8887146,137.82,137.79,0.66]
[1764361502525,7.93648344,137.81,137.79,0.427763]
[1764361502838,11.08907517,137.81,137.78,59.14459202]
[1764361503052,3.63259173,137.8,137.78,59.14459202]
[1764361503241,3.83259173,137.79,137.78,58.91233802]
[1764361503635,7.25648344,137.81,137.78,58.91233802]
[1764361503845,3.63259173,137.79,137.78,58.68008402]
[1764361504043,3.83259173,137.8,137.78,58.44783002]
[1764361504247,3.83259173,137.79,137.78,58.44783002]
[1764361504446,3.63259173,137.79,137.77,62.30783002]
[1764361504632,3.43259173,137.79,137.77,62.07557602]
[1764361505129,3.23259173,137.79,137.77,61.84332202]
[1764361505531,3.23259173,137.79,137.77,61.61106802]
[1764361505737,3.03259173,137.79,137.77,61.61106802]
[1764361505944,7.25702127,137.8,137.77,61.37881402]
[1764361505945,11.089613,137.8,137.77,61.37881402]
[1764361506151,10.889613,137.8,137.77,61.37881402]
[1764361506352,18.14015897,137.82,137.77,61.37881402]
[1764361506353,3.83259173,137.82,137.78,0.69]
[1764361506547,11.08851286,137.82,137.78,7.71531634]
[1764361506754,10.88851286,137.82,137.78,7.25757034]
[1764361507050,10.68852786,137.82,137.78,7.02529934]
[1764361507255,10.68852786,137.82,137.78,6.79302834]
[1764361507549,11.08851286,137.82,137.79,3.2]
[1764361507747,11.08851286,137.82,137.79,2.967729]
[1764361507952,11.08804328,137.83,137.8,0.69]
[1764361508528,11.08804328,137.83,137.8,0.457746]
[1764361508728,10.88804328,137.83,137.79,10.22478125]
[1764361509037,11.40804328,137.83,137.79,20.2173085]
[1764361509235,25.39192937,137.84,137.79,24.04990023]
[1764361509437,29.7445211,137.84,137.79,82.26551025]
[1764361509634,29.7445211,137.84,137.79,78.43291852]
[1764361509832,29.7445211,137.84,137.79,78.20069852]
[1764361510037,3.83259173,137.83,137.79,78.20069852]
[1764361510347,11.08799772,137.83,137.79,77.96847852]
[1764361510545,11.59801272,137.83,137.8,0.67]
[1764361510846,11.59801272,137.83,137.8,0.437763]
[1764361511046,0.51,137.82,137.79,61.15664502]
[1764361511265,4.34259173,137.82,137.79,60.25440802]
[1764361511434,3.83259173,137.82,137.8,0.67]
[1764361511751,3.63259173,137.82,137.8,0.43778]
[1764361512133,3.63259173,137.82,137.8,0.20556]
[1764361512525,4.54259173,137.82,137.79,60.25440802]
[1764361512854,3.63259173,137.82,137.79,60.02217102]
[1764361513052,4.34259173,137.82,137.79,59.78993402]
[1764361513352,4.54259173,137.82,137.79,59.78993402]
[1764361513552,4.54259173,137.82,137.79,59.55769702]
[1764361513746,4.34259173,137.82,137.79,60.22769702]
[1764361514149,3.83259173,137.82,137.79,60.22769702]
[1764361514334,3.83259173,137.82,137.79,59.99546002]
[1764361514535,9.71210519,137.82,137.79,59.99546002]
[1764361514843,9.71210519,137.82,137.79,59.76322302]
[1764361515043,9.51210519,137.82,137.79,59.76322302]
[1764361515244,9.51210519,137.82,137.79,59.53098602]
[1764361515444,9.31210519,137.82,137.79,59.53098602]
[1764361515657,9.31210519,137.82,137.79,59.29874902]
[1764361515858,9.11210519,137.82,137.79,59.29874902]
[1764361516078,9.11210519,137.82,137.79,59.06651202]
[1764361516261,8.91210519,137.82,137.79,59.06651202]
[1764361516436,9.62210519,137.82,137.79,58.83427502]
[1764361516639,9.42210519,137.82,137.79,58.83427502]
[1764361516962,2.45610277,137.81,137.79,58.83427502]
[1764361517149,2.96610277,137.81,137.79,0.437763]
[1764361517540,2.96610277,137.81,137.79,0.205526]
[1764361517757,2.76610277,137.81,137.79,0.205526]
[1764361517940,10.02254962,137.81,137.78,3.2]
[1764361518145,10.02254962,137.81,137.79,16.308864]
[1764361518146,2.45610277,137.8,137.79,16.308864]
[1764361518363,2.45610277,137.8,137.79,16.076627]
[1764361518553,2.96610277,137.81,137.79,16.746627]
[1764361518864,2.25610277,137.81,137.79,16.746627]
[1764361519249,2.25610277,137.81,137.79,16.51439]
[1764361519555,2.05610277,137.81,137.79,16.51439]
[1764361519762,2.05610277,137.81,137.79,16.282153]
[1764361520062,1.85610277,137.81,137.79,16.282153]
[1764361520467,1.85610277,137.81,137.79,16.049916]
[1764361520651,7.7460735,137.82,137.79,16.049916]
[1764361520963,2.45610277,137.81,137.79,15.817679]
[1764361521166,2.45610277,137.81,137.79,15.585442]
[1764361521459,2.25611777,137.81,137.79,15.585442]
[1764361521665,10.20217627,137.82,137.79,15.353205]
[1764361521870,10.00217627,137.82,137.79,15.353205]
[1764361522174,9.80217627,137.82,137.79,76.520968]
[1764361522957,9.80217627,137.82,137.79,76.288731]
[1764361523160,9.60217627,137.82,137.79,76.288731]
[1764361523383,9.60217627,137.82,137.79,76.056494]
[1764361523672,9.40217627,137.82,137.79,76.056494]
[1764361523873,8.71217627,137.82,137.79,76.056494]
[1764361524182,8.71217627,137.82,137.79,75.824257]
[1764361524357,7.25532661,137.83,137.8,7.95689404]
[1764361524675,7.05532661,137.83,137.8,7.25689404]
[1764361524879,7.05532661,137.83,137.81,0.7]
[1764361525457,27.84658205,137.85,137.81,7.956327]
[1764361525759,7.25476543,137.85,137.81,69.356327]
[1764361525964,9.7108682,137.85,137.82,0.7]
[1764361526165,10.4008682,137.85,137.82,0.7]
[1764361526875,3.14610277,137.84,137.81,68.656327]
[1764361527349,3.14610277,137.84,137.82,0.7]
[1764361529245,3.14610277,137.84,137.81,69.356327]
[1764361529445,3.14610277,137.84,137.81,68.656327]
[1764361529645,0.69,137.83,137.81,62.1]
[1764361529848,3.14610277,137.83,137.81,61.4]
[1764361530651,0.69,137.83,137.81,61.4]
[1764361531171,7.25503337,137.84,137.81,62.1]
[1764361531379,7.94503337,137.84,137.81,62.1]
[1764361532973,7.94503337,137.84,137.81,61.6]
[1764361535770,0.7,137.83,137.81,60.9]
[1764361536153,3.15610277,137.83,137.81,60.9]
[1764361536354,2.45610277,137.83,137.81,60.9]
[1764361536549,3.15610277,137.83,137.81,60.9]
[1764361536775,0.7,137.82,137.81,60.9]
[1764361537069,0.7,137.82,137.79,82.59158904]
[1764361537249,3.15610277,137.83,137.8,0.68]
[1764361537453,10.41170507,137.83,137.8,0.68]
[1764361537961,13.61170507,137.83,137.8,0.68]
[1764361539947,13.61170507,137.83,137.8,61.58]
[1764361543576,3.15610277,137.82,137.8,60.9]
[1764361544168,0.7,137.82,137.8,60.9]
[1764361544369,0.7,137.82,137.8,61.58]
[1764361544569,3.15610277,137.82,137.8,61.58]
[1764361545075,10.41211718,137.82,137.8,61.58]
[1764361545263,9.71211718,137.82,137.8,61.58]
[1764361545666,10.41211718,137.82,137.8,61.58]
[1764361546068,2.45610277,137.81,137.8,0.68]
[1764361549875,2.45610277,137.81,137.79,68.15733204]
[1764361550083,2.45610277,137.81,137.79,61.58]
[1764361550487,2.45610277,137.81,137.79,60.9]
[1764361550687,2.45610277,137.81,137.8,0.68]
[1764361551974,10.41211718,137.82,137.8,0.68]
[1764361552486,10.41211718,137.82,137.79,61.58]
[1764361553266,10.41211718,137.82,137.8,0.68]
[1764361553888,10.41211718,137.82,137.79,61.58]
[1764361554484,10.41211718,137.82,137.8,0.68]
[1764361554876,10.41211718,137.82,137.79,61.58]
[1764361555278,10.41211718,137.82,137.79,60.9]
[1764361555478,10.41211718,137.82,137.8,0.68]
[1764361556088,10.41211718,137.82,137.79,61.58]
[1764361557491,10.41211718,137.82,137.79,60.9]
[1764361557692,10.41211718,137.82,137.8,0.68]
[1764361558069,2.45610277,137.81,137.8,0.68]
[1764361558270,3.15610277,137.81,137.79,60.9]
[1764361558581,7.25601441,137.82,137.79,60.9]
[1764361558777,2.45610277,137.8,137.79,61.58]
[1764361559390,2.45610277,137.81,137.79,61.58]
[1764361559765,2.45610277,137.81,137.8,0.68]
[1764361562890,3.15610277,137.81,137.79,60.9]
[1764361563076,2.45610277,137.8,137.79,61.58]
[1764361565389,6.32610277,137.8,137.76,76.11473613]
[1764361565694,3.87,137.8,137.77,0.7]
[1764361565878,0.67,137.79,137.76,68.15872172]
[1764361566084,0.67,137.79,137.76,68.85872172]
[1764361566790,2.45610277,137.77,137.76,68.85872172]
[1764361567174,0.67,137.79,137.76,68.85872172]
[1764361567390,2.45610277,137.79,137.77,0.7]
[1764361569977,2.45610277,137.79,137.76,68.15872172]
[1764361570182,3.12610277,137.78,137.76,60.9]
[1764361570389,3.12610277,137.78,137.76,61.6]
[1764361570587,2.45610277,137.78,137.76,61.6]
[1764361570785,10.38366185,137.79,137.76,60.9]
[1764361570984,10.38366185,137.79,137.76,61.6]
[1764361571375,10.38366185,137.79,137.76,68.85890886]
[1764361573406,10.38366185,137.79,137.76,61.6]
[1764361573592,2.45610277,137.78,137.76,61.6]
[1764361574398,3.12610277,137.78,137.76,60.9]
[1764361574601,4.51022338,137.78,137.76,60.9]
[1764361575705,11.76835228,137.78,137.76,60.9]
[1764361576080,0.67,137.77,137.76,60.9]
[1764361576281,11.76835228,137.78,137.76,60.9]
[1764361576481,3.84022338,137.77,137.76,60.9]
[1764361576677,11.76835228,137.78,137.76,60.9]
[1764361577407,11.76835228,137.78,137.76,61.6]
[1764361577808,11.76835228,137.78,137.76,60.9]
[1764361578901,11.09835228,137.78,137.76,60.9]
[1764361579099,0.67,137.77,137.76,60.9]
[1764361579281,11.09835228,137.78,137.76,60.9]
[1764361579484,11.76835228,137.78,137.76,60.9]
[1764361579685,3.84022338,137.77,137.76,60.9]
[1764361579986,4.51022338,137.77,137.76,60.9]
[1764361580211,3.84022338,137.77,137.76,60.9]
[1764361581405,4.51022338,137.77,137.76,60.9]
[1764361582210,11.76869764,137.77,137.74,72.05974882]
[1764361582379,11.76869764,137.77,137.74,71.35974882]
[1764361582584,11.76869764,137.77,137.75,0.67]
[1764361582785,3.84022338,137.76,137.75,0.67]
[1764361583500,29.94688197,137.76,137.72,18.14399739]
[1764361583687,3.84022338,137.73,137.69,0.1]
[1764361583894,3.84022338,137.7,137.69,0.1]
[1764361584206,0.7,137.74,137.69,0.77]
[1764361584515,3.2,137.74,137.69,11.87287742]
[1764361584718,3.2,137.74,137.7,0.67]
[1764361584893,7.04022338,137.74,137.7,0.67]
[1764361585409,7.74022338,137.74,137.7,0.67]
[1764361585609,3.84022338,137.73,137.7,0.67]
[1764361590507,11.10083431,137.73,137.7,0.67]
[1764361590711,11.10083431,137.73,137.7,61.57]
[1764361591088,11.10083431,137.73,137.71,0.67]
[1764361591702,3.84022338,137.73,137.71,0.67]
[1764361591902,3.84022338,137.72,137.71,0.67]
[1764361594612,4.54022338,137.72,137.7,60.9]
[1764361594919,7.74022338,137.71,137.7,60.9]
[1764361595104,7.74022338,137.71,137.69,61.0]
[1764361595304,3.84022338,137.7,137.69,61.0]
[1764361595504,2.34022338,137.7,137.69,61.0]
[1764361595698,3.04022338,137.7,137.69,61.0]
[1764361596890,10.3023875,137.7,137.69,61.0]
[1764361599520,10.3023875,137.7,137.69,0.1]
[1764361602121,9.6023875,137.7,137.69,0.1]
[1764361603918,7.26216412,137.7,137.69,0.1]
[1764361604119,11.1023875,137.7,137.69,0.1]
[1764361604310,11.8023875,137.7,137.69,0.1]
[1764361609826,15.0023875,137.7,137.69,0.1]
[1764361616450,18.84261088,137.7,137.69,0.1]
[1764361617331,15.0023875,137.7,137.69,0.1]
[1764361618058,7.96216412,137.7,137.69,0.1]
[1764361618238,14.3023875,137.7,137.69,0.77]
[1764361618552,14.3023875,137.7,137.69,0.1]
[1764361620050,15.0023875,137.7,137.69,0.1]
[1764361621333,14.3023875,137.7,137.69,0.1]
[1764361624258,15.0023875,137.7,137.69,0.1]
[1764361625129,14.3023875,137.7,137.69,0.1]
[1764361625334,18.15277374,137.72,137.69,0.76]
[1764361625536,11.09975151,137.75,137.69,0.76]
[1764361625743,3.84022338,137.73,137.69,0.76]
[1764361626248,3.2,137.74,137.69,0.76]
[1764361626457,3.84022338,137.73,137.69,0.76]
[1764361626636,3.84022338,137.73,137.7,7.26216412]
[1764361627337,3.84022338,137.72,137.71,0.66]
[1764361627532,3.84022338,137.72,137.7,0.66]
[1764361629546,10.46028722,137.74,137.7,7.92197656]
[1764361629745,3.84022338,137.73,137.7,7.92197656]
[1764361630057,3.84022338,137.73,137.71,0.66]
[1764361632159,3.84022338,137.72,137.7,61.56]
[1764361632541,3.84022338,137.71,137.7,61.56]
[1764361633649,11.10167001,137.72,137.7,61.56]
[1764361634057,14.30167001,137.72,137.7,61.56]
[1764361634469,3.84022338,137.73,137.71,0.66]
[1764361634677,3.2,137.72,137.71,0.66]
[1764361636192,11.09990529,137.75,137.71,7.92133247]
[1764361636483,14.29990529,137.75,137.71,68.82133247]
[1764361636777,12.91841092,137.75,137.72,0.66]
[1764361637265,7.25875566,137.77,137.72,68.82108447]
[1764361637473,5.65872901,137.76,137.72,68.82108447]
[1764361637646,5.65872901,137.76,137.73,0.66]
[1764361638477,5.65872901,137.76,137.73,7.92045159]
[1764361638965,5.65872901,137.76,137.74,0.66]
[1764361639878,3.10872901,137.75,137.71,0.66]
[1764361640178,3.2,137.75,137.71,16.968864]
[1764361640552,3.2,137.75,137.72,0.66]
[1764361641166,3.2,137.75,137.72,7.92110949]
[1764361641359,3.2,137.75,137.73,0.68]
[1764361642473,5.65872901,137.75,137.73,0.68]
[1764361647277,3.2,137.75,137.73,0.68]
[1764361647582,5.65872901,137.75,137.73,0.68]
[1764361648163,5.65872901,137.75,137.73,7.9405767]
[1764361648660,5.65872901,137.75,137.74,0.68]
[1764361650472,3.2,137.75,137.74,0.68]
[1764361650652,5.65872901,137.75,137.74,0.68]
[1764361652960,5.65872901,137.75,137.73,68.8405767]
[1764361653880,2.45872901,137.75,137.73,68.8405767]
[1764361654465,2.45872901,137.75,137.74,0.68]
[1764361655587,2.45872901,137.77,137.74,0.68]
[1764361655766,5.65872901,137.78,137.74,0.68]
[1764361655968,5.65872901,137.78,137.74,70.03852163]
[1764361656595,5.65872901,137.78,137.75,7.96952813]
[1764361656998,5.65872901,137.78,137.76,0.71]
[1764361657184,12.91674623,137.78,137.76,0.71]
[1764361657362,2.45872901,137.77,137.76,0.71]
[1764361661983,2.45872901,137.77,137.75,0.71]
[1764361662163,2.45872901,137.76,137.75,0.71]
[1764361662364,2.45872901,137.76,137.74,68.65979699]
[1764361662669,2.45872901,137.76,137.74,69.36979699]
[1764361663286,2.45872901,137.75,137.74,68.65979699]
[1764361663591,2.45872901,137.76,137.74,68.65979699]
[1764361663890,2.45872901,137.76,137.75,0.71]
[1764361665084,3.12872901,137.76,137.74,61.4]
[1764361665264,2.45872901,137.75,137.74,61.4]